[Event "Italian-ch Semifinal 2022"]
[Site "Acqui Terme"]
[Date "2022.06.16"]
[Round "6.3"]
[White "Genocchio, Daniele"]
[Black "Lumachi, Gabriele"]
[Result "1/2-1/2"]
[ECO "C54"]
[WhiteElo "2365"]
[BlackElo "2347"]
[Annotator "TA"]
[PlyCount "132"]
[EventDate "2022.06.15"]
[EventType "swiss"]
[EventCountry "ITA"]
[SourceTitle "playchess.com"]
[Source "ChessBase"]
[SourceQuality "1"]
[TimeControl "40/5400+30:1800+30"]

{[%evp 19,132,9,13,6,16,8,49,43,31,41,75,47,185,184,187,139,152,132,204,209,218,209,210,203,204,139,137,125,127,150,202,193,193,152,152,155,170,160,173,178,172,96,119,115,227,100,367,106,160,48,71,0,0,-192,-195,-204,-206,-208,-196,-334,-217,-222,-177,-233,-205,-285,-293,-286,-274,-279,-118,-150,-102,-187,-171,-164,-151,-164,-193,-199,-143,-136,-56,-78,-68,-87,0,0,0,0,0,0,0,0,0,0,0,0,0,0,0,0,0,0,0,0,0,0,0,0,0,0,0,0,0]} 1. e4 {[%emt 0:12:07]} e5 {[%emt 0:00:14]} 2. Nf3 {[%emt 0:02:46]} Nc6 {[%emt 0:00:11]} 3. Bc4 {[%emt 0:02:47]} Bc5 {[%emt 0:00:16]} 4. c3 {[%emt 0:01:26]} Nf6 {[%emt 0:00:27]} 5. d3 {[%emt 0:04:30]} d6 {[%emt 0:00:33]} 6. O-O {[%emt 0:03:05]} O-O {[%emt 0:11:20]} 7. b4 {[%emt 0:06:57]} Bb6 {[%emt 0:00:16]} 8. a4 {[%emt 0:00:28]} a5 {[%emt 0:01:03]} 9. b5 {[%emt 0:00:05]} Ne7 {[%emt 0:03:06]} 10. Bg5 {[%emt 0:20:30]} Ng6 {[%emt 0:10:22]} 11. Nh4 {[%emt 0:00:05] C54: Giuoco Piano: 4 c3 Nf6, main lines with 5 d4 and 5 d3.} Nf4 {[%emt 0:03:40]} 12. Nd2 {[%emt 0:00:18]} Ne6 {[%emt 0:02:00]} (12... c6 {is interesting.} 13. d4 exd4 14. Bxf4 dxc3 15. Ndf3 Nxe4 16. Bd3 d5) 13. Bxe6 {[%emt 0:01:30] [#] White is slightly better.} fxe6 $146 {[%emt 0:02:33]} ({Predecessor:} 13... Bxe6 14. Qf3 Re8 15. Nc4 Bxc4 16. Bxf6 Qxf6 17. Qxf6 gxf6 18. dxc4 h5 19. Nf5 Kh7 {1-0 (40) Miettinen,K (2405)-Turko,S ICCF email 2001}) 14. Nhf3 {[%emt 0:05:04]} Qe8 {[%emt 0:06:05]} 15. Nc4 {[%emt 0:00:38]} Nh5 {[%emt 0:09:56]} (15... Bc5 $14) 16. Nxb6 $18 {[%emt 0:01:27]} cxb6 {[%emt 0:04:33]} 17. g3 {[%emt 0:06:22] Against Nf4} (17. Be3 $18) 17... Qf7 {[%emt 0:32:51]} 18. Kg2 {[%emt 0:11:33]} Kh8 {[%emt 0:05:55]} (18... Nf6 $16 {might work better.} 19. Qe2 Qg6 20. Bxf6 Qxf6) 19. Bc1 {[%emt 0:01:11]} Qg6 {[%emt 0:02:05]} 20. Nh4 {[%emt 0:02:22]} Qf7 {[%emt 0:00:09]} 21. Ba3 {[%emt 0:02:32]} Rd8 {[%emt 0:00:09]} 22. Qf3 {[%emt 0:04:06]} Nf6 {[%emt 0:00:04]} 23. Qe3 {[%emt 0:01:06]} Qc7 {[%emt 0:01:03]} 24. Nf3 {[%emt 0:04:40] White is more active.} h6 {[%emt 0:00:22]} (24... Bd7 $16 {keeps fighting.}) 25. Rac1 {[%emt 0:00:51]} Bd7 {[%emt 0:02:02]} 26. d4 {[%emt 0:00:48][%cal Oa3d6]} Be8 {[%emt 0:00:17] [#]} 27. Bxd6 $1 {[%emt 0:00:41][%mdl 512]} Rxd6 {[%emt 0:01:47]} 28. dxe5 {[%emt 0:02:09]} Nd5 {[%emt 0:00:38]} 29. exd5 {[%emt 0:01:11]} Rxd5 {[%emt 0:00:04]} 30. Rfe1 {[%emt 0:00:14]} ({White should play} 30. c4 $18 Rc5 31. Qe4) 30... Bh5 {[%emt 0:00:18]} 31. Nd4 {[%emt 0:00:10]} Qc4 {[%emt 0:00:03]} (31... Re8 $16) 32. h3 {[%emt 0:01:17]} (32. Nxe6 $18 {and the rest is easy.} Rd3 33. Qxb6) 32... Rc8 $2 {[%emt 0:00:31][%mdl 8192]} (32... Re8 $16) 33. g4 $2 {[%emt 0:00:13]} (33. Nxe6 $18 Bf7 34. Nf4 (34. Qxb6 Bxe6 35. Qxe6 Rf8 $18)) 33... Bf7 {[%emt 0:00:07] [#]} (33... Bg6 $142) 34. Red1 {[%emt 0:01:29]} (34. g5 $1 $16 {[%cal Rg5h6]}) 34... Qxa4 {[%emt 0:00:59]} 35. Qf4 {[%emt 0:00:36]} (35. g5 $16 h5 36. Qf3) 35... Kg8 $11 {[%emt 0:00:42]} 36. Nxe6 $2 {[%emt 0:00:35] [#]} Qxf4 $1 $19 {[%emt 0:00:35]} ({And not} 36... Rxd1 37. Qxa4 Rxc1 38. Nf4 $11) 37. Nxf4 {[%emt 0:00:01]} Rxe5 {[%emt 0:00:08]} 38. Rd7 {[%emt 0:00:24]} Rxb5 {[%emt 0:00:07]} 39. Kg3 {[%emt 0:01:15]} (39. Re1 $142 Re8 40. Red1 (40. Rxe8+ $2 Bxe8 41. Rd8 Kf7 $19)) 39... Rbc5 {[%emt 0:01:07]} 40. Ne2 {[%emt 0:00:00][%cal Bf4e2,Be2d4,Bd4f5][%mdl 32]} R5c7 {[%emt 0:00:00]} 41. Rd6 {[%emt 0:03:35]} (41. Rxc7 {was worth a try.} Rxc7 42. Ra1) 41... Bc4 {[%emt 0:04:00]} 42. Nd4 {[%emt 0:00:04]} Ba6 {[%emt 0:01:10]} 43. f3 {[%emt 0:00:47]} Rxc3 {[%emt 0:09:29]} 44. Re1 {[%emt 0:00:23]} R3c7 {[%emt 0:07:55]} (44... Rd3 $19 {is more deadly. Threatens to win with ...a4.} 45. Ra1 Bc4) 45. h4 {[%emt 0:02:07]} a4 {[%emt 0:02:34]} (45... Ra8 $142 46. Rxb6 a4) 46. Nf5 {[%emt 0:02:18]} (46. Ra1 $17) 46... Rf8 {[%emt 0:04:47]} 47. Rxb6 {[%emt 0:00:21]} Bd3 {[%emt 0:01:31]} 48. Ne7+ {[%emt 0:01:00]} Kh7 {[%emt 0:01:22]} 49. Nd5 {[%emt 0:02:59]} Rcf7 {[%emt 0:00:17]} (49... Rd7 $19 50. Nf4 Bc4) 50. Re3 $17 {[%emt 0:00:15] [#]} a3 $1 {[%emt 0:01:32]} 51. Nb4 $15 {[%emt 0:07:45] [#]} Rd7 {[%emt 0:00:07][%cal Of8a8] ...Ra8! is the strong threat.} 52. Na2 $1 {[%emt 0:00:07]} Ra8 {[%emt 0:02:24]} (52... h5 $17 {aiming for ...hxg4.} 53. gxh5 Bf1 54. Rxa3 Rd2) 53. Rb3 $11 {[%emt 0:00:04] The position is equal.} Bc4 {[%emt 0:00:05]} 54. Rxa3 {[%emt 0:00:03]} Rxa3 {[%emt 0:00:05]} 55. Rxa3 {[%emt 0:00:03]} Bxa2 {[%emt 0:01:32]} 56. Rxa2 {[%emt 0:00:04][%mdl 4096] Endgame KR-KR} b5 {[%emt 0:00:14]} 57. Kf4 {[%emt 0:02:07]} b4 {[%emt 0:00:25]} 58. Rb2 {[%emt 0:05:44]} Rb7 {[%emt 0:00:12]} 59. Rb3 {[%emt 0:00:02]} Kg6 {[%emt 0:00:14]} 60. Ke5 {[%emt 0:00:12]} h5 {[%emt 0:01:08]} 61. Kd5 {[%emt 0:01:50]} Kf6 {[%emt 0:00:43]} 62. Kc6 {[%emt 0:00:20]} Rb8 {[%emt 0:00:21]} 63. Kc7 {[%emt 0:00:13]} Rb5 {[%emt 0:00:07]} 64. Kc6 {[%emt 0:00:01]} Rb8 {[%emt 0:00:12]} 65. Kc7 {[%emt 0:00:04]} Rb5 {[%emt 0:00:07]} 66. Kc6 {[%emt 0:00:09]} Rb8 {[%emt 0:02:19] White happily takes the draw.  Weighted Error Value: White=0.37/Black=0.38} 1/2-1/2

[Event "Italian-ch Semifinal 2022"]
[Site "Acqui Terme"]
[Date "2022.06.16"]
[Round "6.4"]
[White "Martorelli, Antonio"]
[Black "Pasini, Nicolo"]
[Result "1/2-1/2"]
[ECO "B31"]
[WhiteElo "2141"]
[BlackElo "2227"]
[Annotator "TA"]
[PlyCount "102"]
[EventDate "2022.06.15"]
[EventType "swiss"]
[EventCountry "ITA"]
[SourceTitle "playchess.com"]
[Source "ChessBase"]
[SourceQuality "1"]
[TimeControl "40/5400+30:1800+30"]

{[%evp 13,102,-21,-29,-48,-16,-30,-31,-16,-32,-27,-33,-36,-22,-41,-49,-37,-52,-41,-36,-49,0,-34,0,-63,-64,-48,-52,-76,-71,-79,-73,-66,-69,-141,-140,-153,-148,-154,-145,-144,-120,-163,0,0,0,-47,47,32,30,38,30,24,62,62,56,18,18,5,6,0,0,0,0,0,0,0,0,0,0,0,0,0,0,0,102,4,8,0,0,0,0,0,0,0,0,0,0,0,0,0,0]} 1. e4 {[%emt 0:00:03]} c5 {[%emt 0:00:04]} 2. Nf3 {[%emt 0:00:08]} Nc6 {[%emt 0:00:11]} 3. Bb5 {[%emt 0:01:29]} g6 {[%emt 0:00:05]} 4. O-O {[%emt 0:00:06]} Bg7 {[%emt 0:00:02]} 5. c3 {[%emt 0:00:09]} Nf6 {[%emt 0:00:04]} 6. d4 {[%emt 0:03:11]} Nxe4 {[%emt 0:00:06]} 7. d5 {[%emt 0:00:09]} Nd6 {[%emt 0:00:06][%cal Be4d6,Bd6e8,Be8f6][%mdl 32]} 8. Na3 {[%emt 0:00:24] B31: Sicilian: 2...Nc6 3 Bb5 g6.} Na5 {[%emt 0:01:41]} 9. Bd3 {[%emt 0:07:05]} O-O {[%emt 0:02:01]} 10. Bf4 {[%emt 0:01:29] Black is slightly better.} b6 {[%emt 0:06:49] [#]} 11. h4 $146 {[%emt 0:11:28][%cal Oh4h5]} ({Predecessor:} 11. Qe2 Ne8 12. Rae1 Nf6 13. d6 e6 14. Nb5 Nd5 15. Bg3 Bb7 16. Rd1 Qc8 17. Nc7 Nxc7 18. dxc7 {½-½ (68) Tanis,C (2184)-Frijling,J (2264) ICCF email 2016}) 11... Ne8 {[%emt 0:04:56]} 12. h5 {[%emt 0:05:22]} d6 {[%emt 0:00:22]} 13. Qd2 {[%emt 0:06:26]} Nf6 {[%emt 0:10:12]} 14. hxg6 {[%emt 0:06:30]} hxg6 {[%emt 0:00:53]} 15. Bh6 {[%emt 0:02:53]} Bg4 {[%emt 0:02:46]} (15... Nxd5 16. Be4 e6 17. c4 $11) 16. Nh2 {[%emt 0:02:37]} Qc8 {[%emt 0:03:23]} (16... Bd7 $15) 17. Rfe1 {[%emt 0:03:56]} Re8 {[%emt 0:03:06]} (17... Nxd5 18. Bxg6 $1 {[%mdl 512]} fxg6 19. Qxd5+ e6 20. Qxd6 $1 (20. Qd2 e5 $16) 20... Bxh6 21. Nxg4 $18) 18. c4 {[%emt 0:21:07]} (18. b4 $11 Nb7 19. Rac1) 18... Bf5 $15 {[%emt 0:04:20]} 19. Bxg7 {[%emt 0:00:49]} Kxg7 {[%emt 0:00:24]} 20. Re3 {[%emt 0:01:03]} Bxd3 {[%emt 0:03:38]} (20... e5 {keeps more tension.} 21. dxe6 Bxd3 22. Qxd3 Rxe6 23. Rh3 Qd7) 21. Qxd3 {[%emt 0:02:40]} e5 {[%emt 0:01:40]} (21... e6 {is more complex.} 22. dxe6 Rxe6 23. Rh3 Qd7) 22. dxe6 {[%emt 0:01:34]} Rxe6 {[%emt 0:00:06]} 23. Rae1 {[%emt 0:00:30]} ({Better is} 23. Rh3 $15) 23... Rxe3 $17 {[%emt 0:00:19]} 24. Rxe3 {[%emt 0:00:52]} Qd7 {[%emt 0:04:36]} 25. Nb5 {[%emt 0:02:55]} d5 {[%emt 0:05:54]} 26. cxd5 {[%emt 0:01:13]} Qxd5 {[%emt 0:04:24]} (26... c4 $2 27. Qc3 $1 Qxd5 28. Nc7 Qd1+ 29. Re1 $18) 27. Qc3 {[%emt 0:03:03] And now Nc7 would win.} Qd1+ $2 {[%emt 0:03:20]} (27... Qxa2 $2 28. Rf3 (28. Ng4 Qb1+ 29. Re1 Qf5 $11) 28... Qe6 29. Nc7 $18) ({Black should try} 27... Rd8 $19 {aiming for ...a6.} 28. Nxa7 Nc4) 28. Nf1 $11 {[%emt 0:02:36]} ({Of course not} 28. Re1 Qa4 29. Nc7 Rh8 $15) 28... Nc6 {[%emt 0:01:10] White must now prevent ...Rd8.} 29. Rd3 {[%emt 0:00:51]} (29. Nc7 $11 Rh8 30. Ne8+ Rxe8 31. Rxe8) 29... Qa4 {[%emt 0:24:12]} (29... Qh5 $1 $15) 30. Rd6 $1 $14 {[%emt 0:00:32][%csl LRc6,LRf6]} ({Avoid the trap} 30. Nc7 $2 Nd4 $1 31. Rd2 Rd8 $19) 30... Nd4 $1 {[%emt 0:00:34]} 31. Nxd4 {[%emt 0:00:23]} cxd4 {[%emt 0:00:18]} 32. Rxd4 {[%emt 0:00:31]} Qa5 {[%emt 0:04:05]} (32... Qb5 {is interesting.} 33. Rd6 Qf5 34. Ne3 Qf4) 33. Qxa5 {[%emt 0:03:45]} bxa5 {[%emt 0:00:01][%mdl 4096] Endgame KRN-KRN} 34. Ra4 {[%emt 0:00:20]} Rb8 {[%emt 0:00:00]} 35. Rxa5 {[%emt 0:00:07]} Rxb2 {[%emt 0:00:04]} 36. Rxa7 {[%emt 0:00:05]} Ne4 {[%emt 0:00:04]} 37. f3 {[%emt 0:01:57]} Nc3 {[%emt 0:00:01]} 38. a4 {[%emt 0:01:37]} Ra2 {[%emt 0:01:18]} 39. a5 {[%emt 0:00:12]} Nb5 {[%emt 0:00:45]} 40. Ra6 {[%emt 0:00:00]} Nc7 {[%emt 0:00:00]} 41. Rc6 {[%emt 0:02:47]} Nd5 {[%emt 0:02:48]} 42. Rc5 {[%emt 0:01:08]} Nf4 {[%emt 0:00:24]} 43. Ne3 {[%emt 0:02:18]} Re2 {[%emt 0:02:12] [#]} (43... Ra3 $11 {remains equal.} 44. Nc4 Ra2) 44. Re5 {[%emt 0:01:42]} ({White should play} 44. Nc2 $1 $16) 44... Ra2 $11 {[%emt 0:06:57] The position is equal.} 45. g4 {[%emt 0:04:46]} Kf6 {[%emt 0:02:31]} 46. Rb5 {[%emt 0:01:10]} Ne2+ {[%emt 0:00:35]} 47. Kf1 {[%emt 0:04:45] Nd5+ is the strong threat.} Ng3+ {[%emt 0:00:49]} 48. Kg1 {[%emt 0:00:11]} Ne2+ {[%emt 0:00:12]} 49. Kf1 {[%emt 0:00:17] Threatens to win with Nd5+.} Ng3+ {[%emt 0:05:47]} 50. Kg1 {[%emt 0:00:10] Hoping for Nd5+.} Ne2+ {[%emt 0:00:40]} 51. Kf1 {[%emt 0:01:09] Strongly threatening Nd5+.} Ng3+ {[%emt 0:00:06] Weighted Error Value: White=0.14 (very precise) /Black=0.17 (very precise)} 1/2-1/2

[Event "Italian-ch Semifinal 2022"]
[Site "Acqui Terme"]
[Date "2022.06.16"]
[Round "6.5"]
[White "Carnicelli, Valerio"]
[Black "Corvi, Marco"]
[Result "1/2-1/2"]
[ECO "B45"]
[WhiteElo "2319"]
[BlackElo "2318"]
[Annotator "TA"]
[PlyCount "146"]
[EventDate "2022.06.15"]
[EventType "swiss"]
[EventCountry "ITA"]
[SourceTitle "playchess.com"]
[Source "ChessBase"]
[SourceQuality "1"]
[TimeControl "40/5400+30:1800+30"]

{[%evp 13,146,46,36,0,0,0,127,138,121,0,0,0,0,-39,-41,-33,-43,-39,0,35,103,-135,-118,-126,-143,-121,-83,-144,-152,-147,-56,-61,-56,-66,-70,-75,-67,-72,-25,-126,-127,-123,-112,-120,-120,-144,-66,-145,-131,-158,-75,-163,-133,-159,-142,-145,0,-167,-156,-209,-134,-204,-181,-158,0,-114,-113,-227,-228,-223,0,-253,-132,-255,-260,-235,-86,-83,-24,-38,-39,-41,-41,-44,-28,-72,-72,-127,-118,-116,-118,-111,0,0,0,-80,-89,-148,-167,-310,-167,-168,-170,-164,-161,-158,-154,-267,-254,-247,-231,-276,-242,-242,-241,-234,-210,-193,-60,-60,-59,-58,-46,-50,-28,-28,-28,-28,0,-19,0,-24,0,-29,0]} 1. e4 {[%emt 0:00:05]} c5 {[%emt 0:03:08]} 2. Nf3 {[%emt 0:00:05]} e6 {[%emt 0:00:10]} 3. d4 {[%emt 0:00:04]} cxd4 {[%emt 0:00:04]} 4. Nxd4 {[%emt 0:00:04]} Nf6 {[%emt 0:00:08]} 5. Nc3 {[%emt 0:00:04]} Nc6 {[%emt 0:00:03]} 6. Ndb5 {[%emt 0:00:05]} Bb4 {[%emt 0:00:13]} 7. Bf4 {[%emt 0:00:06]} Nxe4 {[%emt 0:06:29]} 8. Nc7+ {[%emt 0:00:25] B45: Sicilian Four Knights.} (8. Qf3 $5 {[%cal Rb5c7]} Nxc3 9. bxc3 $11) 8... Kf8 {[%emt 0:01:05]} 9. Qf3 {[%emt 0:00:38]} (9. Nxa8 Qf6 10. Qf3 Nxc3 $17) 9... Bxc3+ {[%emt 0:01:52]} (9... Nxc3 $1 $11 10. bxc3 Qf6) 10. bxc3 $16 {[%emt 0:00:17] White is better.} d5 {[%emt 0:04:59]} 11. O-O-O {[%emt 0:00:06]} (11. Nxa8 $16 {aiming for Bc7.} e5 12. Bc1) 11... Qe7 $11 {[%emt 0:13:25]} 12. c4 {[%emt 0:35:02]} Nb4 $36 {[%emt 0:10:36][%mdl 2048] Black has the initiative.} 13. a3 {[%emt 0:31:07]} Na2+ {[%emt 0:09:13]} 14. Kb2 {[%emt 0:00:04] [#]} Nac3 {[%emt 0:01:25]} 15. Rd3 {[%emt 0:01:59] [#]} (15. Re1 Qf6) 15... Na4+ {[%emt 0:07:18]} (15... e5 $1 $15 16. Nxa8 Na4+ 17. Kc1 exf4 18. Qxf4 dxc4) 16. Kc1 $14 {[%emt 0:01:32] Active counter play!} Qf6 {[%emt 0:03:30] [#]} (16... Nac5 $1 $14) 17. Bd6+ $146 {[%emt 0:01:20]} (17. Rb3 $1 $16 {is forced if you want to stay better.} Nac5 18. Rb1 (18. Nxa8 Nxb3+ 19. cxb3 Qa1+ 20. Kc2 Nxf2 $11)) ({Predecessor:} 17. c3 e5 18. Nxd5 Qf5 19. g4 Qg6 20. Bxe5 Bxg4 21. Qf4 Nac5 22. f3 Nf2 23. Bd6+ {1-0 (30) Krug,P (2187)-Poppner,D (2053) Berlin 2003}) 17... Nxd6 $17 {[%emt 0:00:24] Pair of Knights!} 18. Qxf6 {[%emt 0:00:05]} gxf6 {[%emt 0:00:13]} 19. Nxa8 {[%emt 0:00:11]} Nxc4 {[%emt 0:01:00]} 20. Nc7 {[%emt 0:00:42]} (20. Rd4 $142 Nab2 21. Nc7) 20... a6 {[%emt 0:05:33]} 21. Rd4 {[%emt 0:13:57]} b5 {[%emt 0:02:17]} (21... Nab6 $17 22. Bxc4 Nxc4) 22. Bxc4 $15 {[%emt 0:01:25]} bxc4 {[%emt 0:00:46]} 23. Nxd5 {[%emt 0:03:15]} exd5 {[%emt 0:02:12]} 24. Rxd5 {[%emt 0:00:04]} Kg7 {[%emt 0:01:55]} 25. Re1 {[%emt 0:00:53]} Nc3 {[%emt 0:06:16]} (25... Be6 $17 26. Ra5 Nc3) 26. Rc5 {[%emt 0:01:25]} (26. Rd4 $1 $11 Nb5 27. Rxc4) 26... Be6 $17 {[%emt 0:02:51]} 27. Re3 {[%emt 0:00:14]} Nb5 $1 {[%emt 0:05:25]} 28. Rc6 {[%emt 0:05:23]} Ra8 $1 {[%emt 0:02:41]} 29. h3 {[%emt 0:01:45]} Kf8 {[%emt 0:01:19]} (29... Nd4 $17 30. Rc7 Rd8) 30. Rc5 {[%emt 0:00:55]} ({Better is} 30. g4 $15) 30... f5 {[%emt 0:01:39]} 31. Rc6 {[%emt 0:00:19]} Ra7 {[%emt 0:01:16]} (31... Bd5 32. Rh6 $17) (31... f4 $142 32. Re5 f3 33. gxf3 Nd4) 32. h4 {[%emt 0:00:37]} (32. a4 $17 Nc7 33. Re1) 32... Nc7 {[%emt 0:01:22]} 33. Rc5 {[%emt 0:01:48]} Rb7 {[%emt 0:01:44]} 34. Rc6 {[%emt 0:00:17]} Ra7 {[%emt 0:00:56]} (34... Nd5 $17 35. Re5 Ra7) 35. h5 $2 {[%emt 0:01:03]} (35. Rc5 $1 $11) 35... h6 $19 {[%emt 0:00:28]} 36. Rb6 {[%emt 0:00:28]} (36. Re1 $17) 36... f4 {[%emt 0:01:17]} 37. Re5 {[%emt 0:00:09]} (37. Rb8+ $17 Kg7 38. Re4) 37... Nd5 {[%emt 0:01:55]} 38. Rd6 {[%emt 0:00:09]} Nc7 {[%emt 0:01:03]} (38... Nc3 $1 $17 39. Rd4 f3 40. gxf3 Rb7) 39. Ra5 {[%emt 0:01:00]} (39. Rb6 $1 $11 {remains equal.}) 39... Ke7 $17 {[%emt 0:00:16]} 40. Rb6 {[%emt 0:00:00]} (40. Rd4 $17 {is the only way for White.}) 40... Ra8 $19 {[%emt 0:00:00]} 41. Rc5 {[%emt 0:09:11]} Ra7 {[%emt 0:04:23]} (41... Nd5 $19 42. Rb7+ Kf6 43. Rxc4 Rg8) 42. Rb8 {[%emt 0:03:48][%mdl 8192]} (42. Ra5 $1 $11 {and White stays safe.}) 42... Kf6 {[%emt 0:01:18]} ({Black should play} 42... Nb5 $19 43. Re5 Rd7) 43. Rh8 {[%emt 0:00:29]} (43. Rb6 $17 {keeps fighting.}) 43... Kg7 {[%emt 0:00:25]} 44. Rd8 {[%emt 0:00:28] [#]} Rb7 {[%emt 0:00:40]} (44... Nb5 $1 $19 {White must now prevent ...Rb7.} 45. Kb2 Rb7) 45. a4 $17 {[%emt 0:00:46]} Kf6 {[%emt 0:01:36]} (45... Bg4 $17 {Strongly threatening ...Ne6.} 46. Rd2 (46. Rd6 Ne6 $15) 46... f3) 46. Kd2 {[%emt 0:02:05]} Ke7 {[%emt 0:06:47]} 47. Rd4 {[%emt 0:01:58]} Ne8 {[%emt 0:01:39]} 48. Rxf4 {[%emt 0:01:09]} Rd7+ {[%emt 0:01:20]} 49. Ke2 {[%emt 0:02:28]} Nf6 {[%emt 0:01:55]} 50. Rh4 {[%emt 0:04:26]} ({White should try} 50. Ke1) 50... Kd6 {[%emt 0:02:31]} 51. Ra5 {[%emt 0:01:04]} Ra7 {[%emt 0:00:29]} 52. Rd4+ {[%emt 0:00:51]} Bd5 {[%emt 0:00:54]} (52... Kc6 $17 {...Nd7 is the strong threat.} 53. Re5 Nd7) 53. f3 $11 {[%emt 0:01:37]} Kc6 {[%emt 0:05:21]} 54. Kf2 {[%emt 0:00:05]} (54. g4 $1 $11) 54... Be6 $17 {[%emt 0:01:04] And now ...Nd7 would win.} 55. g4 {[%emt 0:00:24] [#]} (55. Re5 $142) 55... Nd7 $1 {[%emt 0:00:47] Threatens to win with ...Nc5.} 56. f4 {[%emt 0:06:16]} (56. g5 {was necessary.}) 56... Kb6 {[%emt 0:00:17]} (56... Bxg4 57. Rxc4+ Kd6 58. Rc8 $11) (56... Nc5 $142 {Hoping for ...Kb6.} 57. g5 Kb6 58. Rxc5 Kxc5) 57. Rad5 $19 {[%emt 0:00:02]} Bxd5 {[%emt 0:00:21]} ({Don't take} 57... Bxg4 58. a5+ Kc6 59. Rd6+ Kc7 60. Rxh6 $16) 58. Rxd5 {[%emt 0:00:01][%mdl 4096] Endgame KRN-KR} Kc6 {[%emt 0:01:06] Against Rd6+} 59. Rf5 {[%emt 0:00:16]} f6 {[%emt 0:00:56]} 60. g5 {[%emt 0:00:18]} (60. Ke3 $17 {might work better.}) 60... fxg5 {[%emt 0:01:11]} 61. fxg5 {[%emt 0:00:02]} hxg5 {[%emt 0:00:10]} 62. Rxg5 {[%emt 0:00:35]} Nc5 {[%emt 0:00:27]} 63. Rg6+ {[%emt 0:01:06]} Kd5 {[%emt 0:00:04]} 64. h6 {[%emt 0:00:32]} Rh7 {[%emt 0:02:12]} ({Not} 64... Nxa4 $2 65. Ke3) 65. Ke3 {[%emt 0:00:51]} a5 {[%emt 0:00:41]} ({Worse is} 65... Nxa4 66. Rxa6 Nc5 67. Rf6 $17) (65... Re7+ $19 66. Kf4 Rf7+ 67. Ke3 Ne6) 66. Rg5+ $15 {[%emt 0:00:59]} Kd6 {[%emt 0:00:29]} 67. Rh5 {[%emt 0:01:00]} Ne6 {[%emt 0:02:26]} 68. c3 {[%emt 0:01:10]} Ke7 {[%emt 0:00:42]} 69. Ke4 {[%emt 0:00:47]} Kf6 {[%emt 0:00:20]} 70. Rf5+ {[%emt 0:00:24]} Ke7 {[%emt 0:00:37]} 71. Rh5 {[%emt 0:00:25]} Kf6 {[%emt 0:00:05]} 72. Rf5+ {[%emt 0:00:03]} Ke7 {[%emt 0:01:49]} 73. Rh5 {[%emt 0:00:08]} Kf6 {[%emt 0:01:21] Black had all chances to win.  Weighted Error Value: White=0.52/Black=0.37} 1/2-1/2

[Event "Italian-ch Semifinal 2022"]
[Site "Acqui Terme"]
[Date "2022.06.16"]
[Round "6.6"]
[White "Bettalli, Francesco"]
[Black "Perossa, Nicolas"]
[Result "1/2-1/2"]
[ECO "C01"]
[WhiteElo "2304"]
[BlackElo "2139"]
[Annotator "TA"]
[PlyCount "63"]
[EventDate "2022.06.15"]
[EventType "swiss"]
[EventCountry "ITA"]
[SourceTitle "playchess.com"]
[Source "ChessBase"]
[SourceQuality "1"]
[TimeControl "40/5400+30:1800+30"]

{[%evp 10,63,11,14,22,14,12,14,15,16,2,0,7,0,0,0,26,16,14,7,0,8,0,19,38,27,43,41,63,0,0,-7,0,0,0,-43,-46,-39,-44,-30,11,8,14,10,8,0,0,0,-7,-11,-8,-8,-10,-38,-29,-182]} 1. e4 {[%emt 0:00:02]} e6 {[%emt 0:00:07]} 2. d4 {[%emt 0:00:04]} d5 {[%emt 0:00:06]} 3. Nc3 {[%emt 0:00:05]} Bb4 {[%emt 0:00:14]} 4. exd5 {[%emt 0:00:06]} exd5 {[%emt 0:00:32]} 5. Bd3 {[%emt 0:00:05]} Ne7 {[%emt 0:00:29]} 6. Nf3 {[%emt 0:00:06]} O-O {[%emt 0:00:36] C01: French: Exchange Variation.} 7. O-O {[%emt 0:00:25]} c6 {[%emt 0:00:26]} 8. Re1 {[%emt 0:02:16]} Bd6 {[%emt 0:02:14] The position is equal.} 9. Bg5 {[%emt 0:01:18]} f6 {[%emt 0:00:28] [#]} 10. Bd2 $146 {[%emt 0:02:34]} ({Predecessor:} 10. Bh4 Nf5 11. Bg3 Nxg3 12. hxg3 Bg4 13. Be2 Bd7 14. Nh4 g5 15. Nf3 g4 16. Nh2 {0-1 (38) Tanenbaum,Z (2137)-Nakamura,H (2736) Chess.com INT 2020}) 10... Bf5 {[%emt 0:11:20]} 11. Bf1 {[%emt 0:02:30]} Ng6 {[%emt 0:17:14]} 12. Ne2 {[%emt 0:00:22]} Re8 {[%emt 0:05:42]} 13. Ng3 {[%emt 0:00:26]} Rxe1 {[%emt 0:00:45]} 14. Nxe1 {[%emt 0:00:15]} Be6 {[%emt 0:00:24]} 15. Bd3 {[%emt 0:04:04]} Qd7 {[%emt 0:02:52]} 16. c3 {[%emt 0:01:22]} Na6 {[%emt 0:19:07]} 17. Qc2 {[%emt 0:05:57]} Bxg3 {[%emt 0:01:23]} 18. hxg3 {[%emt 0:00:33]} Kf7 {[%emt 0:02:04]} 19. f4 {[%emt 0:08:46]} ({Better is} 19. Qb3 $14) 19... Ne7 $11 {[%emt 0:01:46]} 20. Nf3 {[%emt 0:00:15]} ({But not} 20. Bxh7 $2 g6 21. Nf3 Bf5 $19) 20... Bf5 {[%emt 0:05:57]} 21. Re1 {[%emt 0:03:01][%cal Oe1e7] [#] Strongly threatening Rxe7+!} g6 {[%emt 0:00:41]} 22. b3 {[%emt 0:04:07]} Re8 {[%emt 0:03:19]} 23. c4 {[%emt 0:06:57]} Bxd3 {[%emt 0:01:01]} 24. Qxd3 {[%emt 0:00:02]} Nf5 {[%emt 0:00:25]} 25. g4 {[%emt 0:02:19]} Rxe1+ {[%emt 0:01:00]} 26. Bxe1 {[%emt 0:00:01]} Nd6 {[%emt 0:00:13]} 27. g5 {[%emt 0:00:01]} Qf5 {[%emt 0:01:42]} 28. Qxf5 {[%emt 0:00:05]} Nxf5 {[%emt 0:02:38]} 29. gxf6 {[%emt 0:01:12]} Kxf6 {[%emt 0:00:20]} 30. Kf2 {[%emt 0:02:44]} h5 {[%emt 0:05:29]} 31. Ke2 {[%emt 0:01:30]} Nc7 {[%emt 0:05:20] Hoping for ...Ne6.} 32. Bh4+ $2 {[%emt 0:53:00] Weighted Error Value: White=0.10 (very precise) /Black=0.06 (flawless)} (32. g3 $11 {and White has nothing to worry.}) 1/2-1/2